lending/lending_fUSD_20250621
["ID","MTS","AMOUNT","RATE_DAILY","PERIOD"]
[366878170,1750541446972,-3135.44,0.00023463,2]
[366878171,1750541446983,-162.23748986,0.00023473,2]
[366878172,1750541446992,-44699.65826558,0.00023473,2]
[366878173,1750541447005,-142882.91999826,0.00023473,2]
[366878174,1750541447016,-107401.93078418,0.00023473,2]
[366878175,1750541447026,-150.0,0.00023475,2]
[366878176,1750541447035,-150.0,0.00023484,2]
[366878177,1750541447044,-150.0,0.00023486,2]
[366878178,1750541447054,-150.0,0.00023492,2]
[366878179,1750541447063,-202.0,0.00023493,8]
[366878180,1750541447072,-293.176269,0.00023498,7]
[366878181,1750541447081,-151.0,0.00023498,7]
[366878182,1750541447091,-293.176269,0.00023498,7]
[366878183,1750541447100,-151.0,0.00023498,7]
[366878184,1750541447110,-233.367198,0.00023498,7]
[366878185,1750541447120,-233.367198,0.00023498,7]
[366878186,1750541447129,-2851.99016,0.000235,2]
[366878187,1750541447139,-843.0,0.00023518,2]
[366878188,1750541447149,-2264.10087164,0.00023518,2]
[366878189,1750541447162,-6967.39125018,0.00023528,2]
[366878272,1750541448248,-20378.71054982,0.00023528,2]
[366878274,1750541448258,-15035.6675615,0.00023532,2]
[366878277,1750541448276,-461.52316723,0.00023532,2]
[366878279,1750541448286,-10410.33430609,0.00023533,2]
[366878281,1750541448295,-231.95477862,0.00023555,9]
[366878283,1750541448305,-150.0,0.00023563,2]
[366878285,1750541448315,-2347.87260389,0.00023573,2]
[366878287,1750541448324,-843.0,0.00023606,2]
[366878289,1750541448334,-289.657758,0.00023623,7]
[366878291,1750541448343,-289.657758,0.00023623,7]
[366878293,1750541448353,-151.0,0.00023623,7]
[366878295,1750541448363,-151.0,0.00023623,7]
[366878297,1750541448372,-150.0,0.00023627,2]
[366878299,1750541448381,-2434.74389024,0.00023628,2]
[366878301,1750541448394,-150.0,0.00023631,2]
[366878303,1750541448406,-150.0,0.00023642,2]
[366878306,1750541448416,-200.0,0.00023652,2]
[366878307,1750541448425,-200.0,0.00023652,2]
[366878309,1750541448435,-150.0,0.00023668,2]
[366878312,1750541448445,-150.0,0.00023682,2]
[366878314,1750541448455,-2524.82941417,0.00023683,2]
[366878316,1750541448464,-150.0,0.00023689,2]
[366878318,1750541448474,-10410.33430609,0.00023692,2]
[366878320,1750541448483,-15497.19072873,0.00023699,2]
[366878322,1750541448494,-5000.0,0.00023699,2]
[366878324,1750541448503,-4453.1409,0.00023699,3]
[366878325,1750541448513,-165.380302,0.0002371,7]
[366878326,1750541448523,-293.176269,0.0002371,7]
[366878327,1750541448532,-293.176269,0.0002371,7]
[366878328,1750541448541,-151.0,0.0002371,7]
[366878329,1750541448551,-233.367198,0.0002371,7]
[366878330,1750541448560,-233.367198,0.0002371,7]
[366878331,1750541448569,-150.0,0.00023714,2]
[366878332,1750541448578,-150.0,0.00023719,2]
[366878333,1750541448588,-1680.0,0.00023724,2]
[366878334,1750541448598,-289.657758,0.00023737,7]
[366878336,1750541448607,-289.657758,0.00023737,7]
[366878338,1750541448617,-151.0,0.00023737,7]
[366878340,1750541448627,-2618.2481025,0.00023738,2]
[366878342,1750541448636,-150.0,0.0002374,2]
[366878344,1750541448646,-300.0,0.00023741,2]
[366878346,1750541448657,-150.0,0.00023741,2]
[366878349,1750541448667,-341.88,0.00023741,2]
[366878351,1750541448680,-355.03,0.00023741,2]
[366878353,1750541448691,-170.94,0.00023741,2]
[366878355,1750541448700,-150.0,0.00023741,2]
[366878357,1750541448710,-170.94,0.00023741,2]
[366878359,1750541448719,-150.0,0.00023741,2]
[366878361,1750541448729,-150.0,0.00023741,2]
[366878363,1750541448739,-170.94,0.00023741,2]
[366878365,1750541448748,-150.0,0.00023741,2]
[366878367,1750541448758,-150.0,0.00023741,2]
[366878369,1750541448767,-170.94,0.00023741,2]
[366878371,1750541448777,-150.0,0.00023741,2]
[366878372,1750541448786,-455.52,0.00023741,2]
[366878374,1750541448796,-150.0,0.00023741,2]
[366878377,1750541448806,-170.94,0.00023741,2]
[366878379,1750541448819,-455.52,0.00023741,2]
[366878381,1750541448829,-150.0,0.00023741,2]
[366878383,1750541448838,-355.03,0.00023741,2]
[366878385,1750541448849,-150.0,0.00023741,2]
[366878387,1750541448859,-231.95477862,0.00023762,9]
[366878389,1750541448869,-150.0,0.00023773,2]
[366878391,1750541448879,-1000.0,0.00023791,2]
[366878393,1750541448889,-2715.12328229,0.00023793,2]
[366878395,1750541448900,-293.176269,0.00023799,7]
[366878397,1750541448911,-293.176269,0.00023799,7]
[366878399,1750541448921,-151.0,0.00023799,7]
[366878401,1750541448931,-233.367198,0.00023799,7]
[366878403,1750541448941,-233.367198,0.00023799,7]
[366878405,1750541448951,-166.59,0.00023811,2]
[366878407,1750541448961,-322.56,0.00023816,2]
[366878409,1750541448971,-803.0,0.00023824,2]
[366878411,1750541448981,-638.0,0.00023824,2]
[366878413,1750541448991,-2005.0,0.00023824,2]
[366878415,1750541449002,-928.0,0.00023824,2]
[366878417,1750541449012,-559.0,0.00023824,2]
[366878419,1750541449022,-591.0,0.00023824,2]
[366878421,1750541449031,-1304.268,0.00023824,2]
[366878423,1750541449041,-1676.0,0.00023824,2]
[366878425,1750541449050,-1161.0,0.00023824,2]
[366878427,1750541449060,-3335.0,0.00023824,2]
[366878429,1750541449069,-946.0,0.00023824,2]
[366878431,1750541449079,-7135.0,0.00023824,2]
[366878433,1750541449088,-4095.0,0.00023824,2]
[366878435,1750541449098,-300.0,0.00023825,2]
[366878437,1750541449108,-150.0,0.0002383,2]
[366878439,1750541449118,-269.92,0.00023836,2]
[366878441,1750541449127,-266.39880271,0.00023846,2]
[366878444,1750541449137,-151.0,0.00023847,7]
[366878446,1750541449147,-256.79224,0.00023847,7]
[366878448,1750541449157,-151.0,0.00023847,7]
[366878450,1750541449167,-256.79224,0.00023847,7]
[366878452,1750541449177,-151.0,0.00023847,7]
[366878453,1750541449186,-213.856235,0.00023847,7]
[366878456,1750541449196,-213.856235,0.00023847,7]
[366878458,1750541449206,-289.657758,0.00023847,7]
[366878459,1750541449216,-289.657758,0.00023847,7]
[366878461,1750541449226,-151.0,0.00023847,7]
[366878464,1750541449236,-2815.58284374,0.00023848,2]
[366878465,1750541449246,-10410.33430609,0.0002385,2]
[366878468,1750541449256,-150.0,0.00023861,2]
[366878469,1750541449266,-15497.19072873,0.00023866,2]
[366878472,1750541449276,-1000.0,0.00023867,2]
[366878474,1750541449286,-355.03,0.0002389,2]
[366878476,1750541449296,-150.0,0.0002389,2]
[366878477,1750541449306,-150.0,0.00023896,2]
[366878480,1750541449315,-400.0,0.00023902,2]
[366878482,1750541449325,-2919.75940895,0.00023903,2]
[366878483,1750541449335,-1376.0,0.00023903,2]
[366878484,1750541449344,-150.0,0.0002391,2]
[366878485,1750541449353,-150.0,0.00023929,2]
[366878487,1750541449363,-971.8001355,0.00023941,2]
[366878489,1750541449373,-151.0,0.00023947,7]
[366878491,1750541449383,-151.251723,0.00023947,7]
[366878493,1750541449392,-151.0,0.00023947,7]
[366878495,1750541449403,-151.0,0.00023947,7]
[366878497,1750541449413,-151.0,0.00023947,7]
[366878498,1750541449422,-151.0,0.00023947,7]
[366878500,1750541449432,-151.0,0.00023947,7]
[366878502,1750541449441,-151.0,0.00023947,7]
[366878504,1750541449451,-157.861356,0.00023947,7]
[366878505,1750541449460,-151.0,0.00023947,7]
[366878507,1750541449469,-151.0,0.00023947,7]
[366878508,1750541449479,-151.0,0.00023947,2]
[366878509,1750541449488,-151.0,0.00023947,2]
[366878510,1750541449497,-151.0,0.00023947,7]
[366878511,1750541449507,-151.0,0.00023947,7]
[366878512,1750541449516,-151.0,0.00023947,7]
[366878513,1750541449525,-256.79224,0.00023947,7]
[366878514,1750541449535,-151.0,0.00023947,7]
[366878515,1750541449544,-256.79224,0.00023947,7]
[366878516,1750541449554,-151.0,0.00023947,7]
[366878517,1750541449563,-293.176269,0.00023947,7]
[366878518,1750541449573,-293.176269,0.00023947,7]
[366878519,1750541449582,-151.0,0.00023947,7]
[366878520,1750541449592,-213.856235,0.00023947,7]
[366878521,1750541449601,-213.856235,0.00023947,7]
[366878522,1750541449610,-233.367198,0.00023947,7]
[366878523,1750541449620,-289.657758,0.00023947,7]
[366878524,1750541449629,-233.367198,0.00023947,7]
[366878525,1750541449639,-289.657758,0.00023947,7]
[366878526,1750541449648,-151.0,0.00023947,7]
[366878527,1750541449660,-150.0,0.00023947,2]
[366878528,1750541449669,-150.0,0.00023947,2]
[366878529,1750541449679,-150.0,0.00023947,2]
[366878530,1750541449688,-150.0,0.00023947,2]
[366878531,1750541449697,-150.0,0.00023947,2]
[366878532,1750541449707,-150.0,0.00023947,2]
[366878533,1750541449717,-150.0,0.00023948,2]
[366878534,1750541449726,-293.176269,0.00023949,7]
[366878535,1750541449736,-293.176269,0.00023949,7]
[366878536,1750541449745,-151.0,0.00023949,7]
[366878537,1750541449755,-233.367198,0.00023949,7]
[366878538,1750541449765,-233.367198,0.00023949,7]
[366878539,1750541449774,-150.0,0.00023949,2]
[366878540,1750541449783,-4242.4024992,0.00023953,2]
[366878541,1750541449792,-3027.79050709,0.00023958,2]
[366878542,1750541449801,-231.95477862,0.00023969,10]
[366878543,1750541449812,-834.26476573,0.0002399,2]
[366878544,1750541449821,-700.0,0.00024,7]
[366878545,1750541449831,-205.0,0.00024,2]
[366878546,1750541449840,-1000.0,0.00024,2]
[366878547,1750541449851,-10410.33430609,0.00024008,2]
[366878548,1750541449860,-3139.81875585,0.00024013,2]
[366878549,1750541449870,-289.657758,0.00024013,7]
[366878550,1750541449879,-289.657758,0.00024013,7]
[366878551,1750541449890,-151.0,0.00024013,7]
[366878552,1750541449900,-150.0,0.00024026,2]
[366878553,1750541449914,-15497.19072873,0.00024032,2]
[366878554,1750541449923,-150.0,0.0002405,2]
[366878555,1750541449932,-168.0,0.00024066,2]
[366878556,1750541449942,-3255.99204981,0.00024068,2]
[366878557,1750541449951,-758.0,0.0002407,2]
[366878558,1750541449960,-150.0,0.00024084,2]
[366878559,1750541449969,-150.0,0.00024088,2]
[366878560,1750541449978,-293.176269,0.00024099,7]
[366878561,1750541449987,-293.176269,0.00024099,7]
[366878562,1750541449996,-300.812412,0.00024099,7]
[366878563,1750541450006,-233.367198,0.00024099,7]
[366878564,1750541450015,-233.367198,0.00024099,7]
[366878565,1750541450024,-151.0,0.000241,7]
[366878566,1750541450034,-158.062829,0.000241,7]
[366878567,1750541450043,-151.0,0.000241,7]
[366878568,1750541450053,-151.0,0.000241,7]
[366878569,1750541450062,-150.0,0.00024106,2]
[366878570,1750541450071,-200.0,0.00024114,2]
[366878571,1750541450081,-3376.46375566,0.00024123,2]
[366878572,1750541450090,-653.90053129,0.00024123,2]
[366878573,1750541450099,-849.315398,0.00024147,4]
[366878574,1750541450109,-10410.33430609,0.00024167,2]
[366878575,1750541450118,-231.95477862,0.00024176,10]
[366878576,1750541450128,-3501.39291462,0.00024178,2]
[366878577,1750541450137,-168.0,0.00024184,2]
[366878578,1750541450146,-150.0,0.00024184,2]
[366878579,1750541450157,-653.90053129,0.00024194,2]
[366878580,1750541450166,-15497.19072873,0.00024199,2]
[366878581,1750541450175,-151.0,0.000242,7]
[366878582,1750541450185,-151.0,0.000242,7]
[366878583,1750541450194,-151.0,0.000242,7]
[366878584,1750541450205,-151.0,0.000242,7]
[366878585,1750541450214,-151.0,0.000242,7]
[366878586,1750541450223,-151.0,0.000242,7]
[366878587,1750541450232,-151.0,0.000242,7]
[366878588,1750541450241,-151.0,0.000242,7]
[366878589,1750541450251,-151.0,0.000242,7]
[366878590,1750541450260,-289.657758,0.000242,7]
[366878591,1750541450269,-289.657758,0.000242,7]
[366878592,1750541450279,-240.772279,0.000242,7]
[366878593,1750541450287,-150.0,0.000242,2]
[366878594,1750541450297,-150.0,0.00024207,2]
[366878595,1750541450306,-3630.94445246,0.00024233,2]
[366878596,1750541450315,-151.395825,0.00024239,7]
[366878597,1750541450324,-151.0,0.00024239,7]
[366878598,1750541450334,-151.0,0.00024239,7]
[366878599,1750541450343,-151.0,0.00024239,7]
[366878600,1750541450352,-151.0,0.00024239,7]
[366878601,1750541450362,-151.0,0.00024239,7]
[366878602,1750541450371,-653.90053129,0.00024265,2]
[366878603,1750541450381,-151.0,0.00024278,7]
[366878604,1750541450390,-296.974154,0.00024278,7]
[366878605,1750541450399,-151.0,0.00024278,7]
[366878606,1750541450409,-151.0,0.00024278,7]
[366878607,1750541450416,-151.0,0.00024278,7]
[366878608,1750541450424,-151.0,0.00024278,7]
[366878609,1750541450432,-151.0,0.00024278,7]
[366878610,1750541450439,-256.79224,0.00024278,7]
[366878611,1750541450446,-151.0,0.00024278,7]
[366878612,1750541450454,-256.79224,0.00024278,7]
[366878613,1750541450463,-195.324464,0.00024278,7]
[366878614,1750541450471,-293.176269,0.00024278,7]
[366878615,1750541450481,-293.176269,0.00024278,7]
[366878616,1750541450491,-213.856235,0.00024278,7]
[366878617,1750541450500,-213.856235,0.00024278,7]
[366878618,1750541450509,-233.367198,0.00024278,7]
[366878619,1750541450518,-233.367198,0.00024278,7]
[366878620,1750541450528,-3765.2893972,0.00024288,2]
[366878621,1750541450538,-150.0,0.00024289,2]
[366878622,1750541450548,-150.0,0.00024302,2]
[366878623,1750541450557,-151.0,0.00024317,7]
[366878624,1750541450567,-151.0,0.00024317,7]
[366878625,1750541450576,-151.0,0.00024317,7]
[366878626,1750541450586,-151.0,0.00024317,7]
[366878627,1750541450596,-151.0,0.00024317,7]
[366878628,1750541450606,-151.0,0.00024317,7]
[366878629,1750541450615,-187.996856,0.00024317,7]
[366878630,1750541450625,-10410.33430609,0.00024325,2]
[366878631,1750541450635,-653.90053129,0.00024337,2]
[366878632,1750541450645,-150.0,0.00024349,2]
[366878633,1750541450655,-151.0,0.00024356,7]
[366878634,1750541450666,-151.0,0.00024356,7]
[366878635,1750541450676,-151.0,0.00024356,7]
[366878636,1750541450686,-151.0,0.00024356,7]
[366878637,1750541450696,-151.0,0.00024356,7]
[366878638,1750541450708,-151.0,0.00024356,7]
[366878639,1750541450719,-151.0,0.00024356,7]
[366878640,1750541450729,-151.0,0.00024356,7]
[366878641,1750541450740,-151.0,0.00024356,7]
[366878642,1750541450750,-289.657758,0.00024356,7]
[366878643,1750541450761,-289.657768,0.00024356,7]
[366878644,1750541450771,-150.0,0.00024365,2]
[366878645,1750541450781,-15497.19072873,0.00024366,2]
[366878646,1750541450790,-300.0,0.00024373,2]
[366878647,1750541450801,-231.95477862,0.00024383,11]
[366878648,1750541450811,-150.0,0.00024393,2]
[366878649,1750541450821,-151.0,0.00024395,7]
[366878650,1750541450831,-256.79224,0.00024395,7]
[366878651,1750541450841,-256.79224,0.00024395,7]
[366878652,1750541450853,-213.856235,0.00024395,7]
[366878653,1750541450862,-213.856235,0.00024395,7]
[366878654,1750541450872,-151.0,0.000244,7]
[366878655,1750541450881,-151.0,0.000244,7]
[366878656,1750541450893,-175.889165,0.000244,7]
[366878657,1750541450906,-293.176269,0.000244,7]
[366878658,1750541450916,-293.17626,0.000244,7]
[366878659,1750541450926,-233.367198,0.000244,7]
[366878660,1750541450937,-233.367203,0.000244,7]
[366878661,1750541450947,-500.0,0.000244,8]
[366878662,1750541450957,-150.0,0.00024404,2]
[366878663,1750541450968,-150.0,0.00024405,2]
[366878664,1750541450977,-150.0,0.00024406,2]
[366878665,1750541450987,-653.90053129,0.00024408,2]
[366878666,1750541450997,-150.0,0.00024415,2]
[366878667,1750541451007,-151.0,0.00024433,7]
[366878668,1750541451016,-151.0,0.00024433,7]
[366878669,1750541451026,-151.0,0.00024433,7]
[366878670,1750541451037,-151.0,0.00024433,7]
[366878671,1750541451046,-151.0,0.00024433,7]
[366878672,1750541451056,-151.0,0.00024433,7]
[366878673,1750541451066,-200.0,0.00024444,2]
[366878674,1750541451075,-150.0,0.00024464,2]
[366878675,1750541451084,-270.940364,0.00024472,7]
[366878676,1750541451094,-169.888486,0.00024472,7]
[366878677,1750541451103,-151.0,0.00024472,7]
[366878678,1750541451113,-256.79224,0.00024472,7]
[366878679,1750541451123,-256.79224,0.00024472,7]
[366878680,1750541451133,-213.856235,0.00024472,7]
[366878681,1750541451143,-213.856235,0.00024472,7]
[366878682,1750541451153,-653.90053129,0.00024479,2]
[366878683,1750541451162,-285.82508772,0.0002448,2]
[366878684,1750541451172,-10410.33430609,0.00024483,2]
[366878685,1750541451182,-151.0,0.00024496,7]
[366878686,1750541451191,-151.0,0.00024496,7]
[366878687,1750541451201,-205.0,0.000245,2]
[366878688,1750541451211,-1000.0,0.000245,8]
[366878689,1750541451222,-2851.99016,0.000245,2]
[366878690,1750541451232,-151.0,0.00024511,7]
[366878691,1750541451242,-151.0,0.00024511,7]
[366878692,1750541451252,-397.0,0.00024526,2]
[366878693,1750541451263,-15497.19072873,0.00024533,2]
[366878694,1750541451272,-49265.15644276,0.00024542,2]
[366878695,1750541451282,-459.945429,0.00024549,2]
[366878696,1750541451292,-459.945429,0.00024549,2]
[366878697,1750541451302,-151.0,0.00024549,7]
[366878698,1750541451311,-151.0,0.00024549,7]
[366878699,1750541451321,-151.0,0.0002455,7]
[366878700,1750541451330,-151.0,0.0002455,7]
[366878701,1750541451339,-151.0,0.0002455,7]
[366878702,1750541451348,-151.0,0.0002455,7]
[366878703,1750541451358,-256.79224,0.0002455,7]
[366878704,1750541451368,-256.79224,0.0002455,7]
[366878705,1750541451378,-290.20508902,0.0002455,2]
[366878706,1750541451387,-213.856235,0.0002455,7]
[366878707,1750541451396,-213.856235,0.0002455,7]
[366878708,1750541451406,-653.90053129,0.0002455,2]
[366878709,1750541451416,-150.0,0.00024558,2]
[366878710,1750541451426,-170.94,0.00024563,2]
[366878711,1750541451436,-910.9,0.00024563,2]
[366878712,1750541451445,-150.0,0.00024563,2]
[366878713,1750541451455,-355.03,0.00024563,2]
[366878714,1750541451466,-170.27,0.00024563,2]
[366878715,1750541451475,-372.98,0.00024563,2]
[366878716,1750541451485,-455.52,0.00024563,2]
[366878717,1750541451494,-150.0,0.00024563,2]
[366878718,1750541451504,-150.0,0.00024563,2]
[366878719,1750541451513,-340.62,0.00024563,2]
[366878720,1750541451523,-150.0,0.00024563,2]
[366878721,1750541451533,-150.0,0.00024563,2]
[366878722,1750541451543,-173.2,0.00024563,2]
[366878723,1750541451553,-163.58,0.00024563,2]
[366878724,1750541451563,-163.58,0.00024563,2]
[366878725,1750541451573,-163.58,0.00024563,2]
[366878726,1750541451582,-163.58,0.00024563,2]
[366878727,1750541451592,-327.16,0.00024563,2]
[366878728,1750541451602,-327.04,0.00024563,2]
[366878729,1750541451612,-163.58,0.00024563,2]
[366878730,1750541451621,-163.58,0.00024563,2]
[366878731,1750541451631,-163.58,0.00024563,2]
[366878732,1750541451641,-322.08,0.00024563,2]
[366878733,1750541451652,-355.03,0.00024565,2]
[366878734,1750541451664,-300.0,0.00024565,2]
[366878735,1750541451674,-914.79,0.00024565,2]
[366878736,1750541451683,-150.0,0.00024567,2]
[366878737,1750541451694,-1000.0,0.00024568,2]
[366878738,1750541451703,-500.0,0.0002457,2]
[366878739,1750541451713,-500.0,0.0002457,2]
[366878740,1750541451723,-500.0,0.0002457,2]
[366878741,1750541451733,-150.0,0.00024575,2]
[366878742,1750541451742,-1007.8644,0.00024576,2]
[366878743,1750541451751,-231.95477862,0.0002459,11]
[366878744,1750541451761,-387.0,0.000246,2]
[366878745,1750541451770,-1000.0,0.000246,2]
[366878746,1750541451780,-1500.0,0.000246,8]
[366878747,1750541451790,-200.0,0.000246,2]
[366878748,1750541451799,-2819.97158457,0.000246,2]
[366878749,1750541451811,-187.12598431,0.000246,2]
[366878750,1750541451822,-4531.21088326,0.000246,2]
[366878751,1750541451831,-322.56,0.00024618,2]
[366878752,1750541451841,-180.0,0.00024623,2]
[366878753,1750541451852,-150.0,0.00024628,2]
[366878754,1750541451862,-150.0,0.00024628,2]
[366878755,1750541451872,-150.0,0.00024628,2]
[366878756,1750541451882,-151.0,0.0002463,7]
[366878757,1750541451894,-280.781559,0.0002463,7]
[366878758,1750541451904,-151.0,0.0002463,7]
[366878759,1750541451915,-3303.0,0.0002463,2]
[366878760,1750541451924,-393.0,0.0002463,2]
[366878761,1750541451934,-151.0,0.00024631,7]
[366878762,1750541451944,-267.227616,0.00024631,7]
[366878763,1750541451954,-167.74196411,0.00024631,2]
[366878764,1750541451964,-151.0,0.00024632,7]
[366878765,1750541451974,-151.0,0.00024632,7]
[366878766,1750541451984,-151.0,0.00024632,7]
[366878767,1750541451994,-151.269193,0.00024632,7]
[366878768,1750541452004,-151.0,0.00024632,7]
[366878769,1750541452014,-151.0,0.00024632,7]
[366878770,1750541452302,-151.0,0.00024632,7]
[366878771,1750541452312,-151.0,0.00024632,7]
[366878772,1750541452322,-256.79224,0.00024632,7]
[366878773,1750541452331,-256.792242,0.00024632,7]
[366878774,1750541452340,-213.856235,0.00024632,7]
[366878775,1750541452349,-213.856231,0.00024632,7]
[366878776,1750541452359,-9187.6902371,0.00024632,2]
[366878777,1750541452368,-437.30000037,0.00024632,2]
[366878778,1750541452377,-2611.355,0.00024632,2]
[366878779,1750541452386,-6795.0371976,0.00024632,2]
[366878780,1750541452395,-49656.07022096,0.00024632,2]
[366878781,1750541452413,-680.19153315,0.00024632,2]
[366878782,1750541452438,-898.53610815,0.00024632,2]
[366878783,1750541452470,-67879.35572764,0.00024632,2]
[366878784,1750541452480,-2530.7641865,0.00024632,2]
[366878785,1750541452490,-150.0,0.00024641,2]
[366878786,1750541452499,-150.0,0.00024641,2]
[366878787,1750541452509,-48995.25182131,0.00024641,2]
[366878788,1750541452629,-2968.11150521,0.00024641,2]
[366878789,1750541452653,-3055.8,0.00024641,2]
[366878790,1750541452666,-1026.024995,0.00024641,2]
[366878791,1750541452677,-3011.9379388,0.00024641,2]
[366878792,1750541452689,-321.0350066,0.00024641,2]
[366878793,1750541452698,-1178.7209934,0.00024642,3]
[366878794,1750541452710,-3010.97319535,0.00024642,3]
[366878795,1750541452723,-870.7,0.00024642,3]
[366878796,1750541452739,-307.89178334,0.00024642,3]
[366878797,1750541452750,-303.999947,0.00024642,3]
[366878798,1750541452766,-87.4975203,0.00024642,3]
[366878799,1750541452776,-7622.5024797,0.00024642,3]
[366878800,1750541452787,-2514.37088174,0.00024642,3]
[366878801,1750541453220,-157.26499277,0.00021021,2]
[366878802,1750541453231,-1000.0,0.00021485,2]
[366878803,1750541453240,-469.09054281,0.00024248,2]
[366878804,1750541453251,-530.90945719,0.00024248,2]
[366878805,1750541453261,-637.51496842,0.00024564,2]
[366878806,1750541453284,-362.48503158,0.00024564,2]
[366878807,1750541453294,-92348.70280142,0.00024642,3]
[366878808,1750541453306,-220836.91901269,0.00024642,3]
[366878809,1750541453325,-9381.94815738,0.00024642,3]
[366878810,1750541453359,-1154.58289488,0.00024642,3]
[366878811,1750541453370,-615.69135162,0.00024642,3]
[366878812,1750541453381,-335.21592032,0.00024642,3]
[366878813,1750541461232,978.0,0.0002465,120]
[366878814,1750541471532,201.0,0.0001928,2]
[366878815,1750541502632,201.0,0.0001928,2]
[366878816,1750541511842,1555.71465077,0.0002465,120]
[366878817,1750541531659,208.0,0.0001928,2]
[366878818,1750541634145,1343.25253383,0.00024657,120]
[366878819,1750542411463,443.0,0.0002465,120]
[366878820,1750542413376,1936.0,0.0002465,120]
[366878821,1750542475018,172.94,0.00019938,2]
[366878822,1750542477354,821.0,0.0002465,120]
[366878824,1750542594331,157.01,0.00013699,2]
[366878853,1750542631688,-300.0,0.00020331,2]
[366878855,1750542631698,-300.0,0.00020567,2]
[366878857,1750542631707,-197.0,0.00020809,3]
[366878859,1750542631717,-157.01,0.00020951,2]
[366878861,1750542631727,-173.86162,0.0002133,2]
[366878863,1750542631737,-336.92929921,0.00021438,2]
[366878865,1750542631747,-202.0,0.00021897,2]
[366878867,1750542631757,-993.0,0.00021918,2]
[366878869,1750542631767,-600.0,0.00022087,2]
[366878871,1750542631776,-1200.0,0.00022087,2]
[366878873,1750542631786,-132.19908086,0.00022088,2]
[366878875,1750542631798,-7107.2143792,0.00022088,2]
[366878879,1750542631827,-298.0,0.00022088,2]
[366878881,1750542631838,-369.38207655,0.00022088,2]
[366878883,1750542631851,-2098.06848632,0.00022088,2]
[366878885,1750542631861,-177.3315137,0.0002233,2]
[366878887,1750542631873,-122.6684863,0.0002233,2]
[366878889,1750542631886,-300.0,0.00022364,2]
[366878891,1750542631896,-250.0,0.00022364,2]
[366878892,1750542631906,-300.0,0.00022364,2]
[366878893,1750542631915,-250.0,0.00022364,2]
[366878894,1750542631925,-675.05526852,0.00022377,2]
[366878895,1750542631935,-300.0,0.00022398,2]
[366878896,1750542631945,-5610.36503632,0.00022399,2]
[366878897,1750542631955,-302.24,0.00022663,2]
[366878898,1750542631965,-250.74,0.00022663,2]
[366878899,1750542631974,-249.25,0.00022663,2]
[366878900,1750542631984,-666.0,0.00022682,2]
[366878901,1750542631994,-1000.0,0.000227,2]
[366878902,1750542632004,-150.0,0.00022734,2]
[366878903,1750542632014,-4762.02,0.00022766,2]
[366878904,1750542632023,-193.53,0.0002278,2]
[366878905,1750542632033,-165.24,0.00022787,2]
[366878906,1750542632043,-200.0,0.00022829,2]
[366878907,1750542632052,-250.0,0.00022861,2]
[366878908,1750542632062,-631.32764223,0.000229,8]
[366878909,1750542632072,-406.89,0.00022935,2]
[366878911,1750542632082,-200.0,0.00022944,7]
[366878912,1750542632091,-289.16873657,0.00022973,2]
[366878913,1750542632101,-372.5,0.00022987,2]